{"text_format":"1","workbook":"xlsx","n_sheets":1,"sheets":["таблица2"],"not_rendered":{"charts":1,"images":0,"macros":1,"external_links":0,"defined_names":2,"comments":0,"pivot_tables":0},"unopened":[],"bounds":{"document_bytes":16777216,"sheet_cells":100000,"rows_first":2000,"rows_last":500,"rows_between":2000,"halvings":0,"cell_chars":16384,"cell_head_chars":4096},"cells_cut":0,"cells_raw":0,"read":"whole","date_system":"1900"}

{"sheet":"таблица2","index":0,"n_rows":34,"n_cols":31,"rows_kept":34,"cut":false,"hidden":false,"merged":[[5,1,8,3],[3,0,4,0],[3,1,4,3],[3,25,3,28],[5,0,8,0],[14,0,15,0],[14,1,15,3],[9,0,13,0],[9,1,13,3],[5,4,5,24],[6,4,6,24],[7,4,7,24],[8,4,8,24],[11,4,11,24],[12,4,12,24],[21,0,23,0],[21,1,23,3],[16,0,20,0],[16,1,20,3],[21,4,21,24],[22,4,22,24],[23,4,23,24],[17,4,17,24],[18,4,18,24],[19,4,19,24],[20,4,20,24],[24,0,26,0],[24,1,26,3],[24,4,24,24],[25,4,25,24],[26,4,26,24],[31,4,31,24],[32,4,32,24],[33,4,33,24],[29,0,33,0],[29,1,33,3],[27,0,28,0],[27,1,28,3],[29,4,29,24],[30,4,30,24],[27,4,27,24],[28,4,28,24],[13,4,13,24],[9,4,9,24],[10,4,10,24],[16,4,16,24],[14,4,14,24],[15,4,15,24],[3,4,4,24]]}
[1,2,3,4,5,6,7,8,9,10,11,12,13,14,15,16,17,18,19,20,21,22,23,24,25,26,27,28,29,34,36]
[]
[]
["количество, шт","Наименование изделия",null,null,"Состав изделия",null,null,null,null,null,null,null,null,null,null,null,null,null,null,null,null,null,null,null,null,"цвет деталей"]
[null,null,null,null,null,null,null,null,null,null,null,null,null,null,null,null,null,null,null,null,null,null,null,null,null,1,2,3,4,{"$f":"SUM(AD6:AD34)","v":54}]
[20,"Изделие 1",null,null,"Деталь 2",null,null,null,null,null,null,null,null,null,null,null,null,null,null,null,null,null,null,null,null,null,null,".",null,{"$f":"(Z6=\".\")*1+(AA6=\".\")*2+(AB6=\".\")*3+(AC6=\".\")*4","v":3}]
[null,null,null,null,"Деталь 3",null,null,null,null,null,null,null,null,null,null,null,null,null,null,null,null,null,null,null,null,null,null,".",null,{"$f":"(Z7=\".\")*1+(AA7=\".\")*2+(AB7=\".\")*3+(AC7=\".\")*4","v":3}]
[null,null,null,null,"Деталь 4",null,null,null,null,null,null,null,null,null,null,null,null,null,null,null,null,null,null,null,null,null,null,".",null,3]
[null,null,null,null,"Деталь 5",null,null,null,null,null,null,null,null,null,null,null,null,null,null,null,null,null,null,null,null,null,null,null,".",4]
[30,"Изделие 2",null,null,"Деталь 6",null,null,null,null,null,null,null,null,null,null,null,null,null,null,null,null,null,null,null,null,null,null,".",null,3]
[null,null,null,null,"Деталь 12",null,null,null,null,null,null,null,null,null,null,null,null,null,null,null,null,null,null,null,null,null,".",null,null,2]
[null,null,null,null,"Деталь 13",null,null,null,null,null,null,null,null,null,null,null,null,null,null,null,null,null,null,null,null,null,".",null,null,2]
[null,null,null,null,"Деталь 14",null,null,null,null,null,null,null,null,null,null,null,null,null,null,null,null,null,null,null,null,null,null,".",null,3]
[null,null,null,null,"Деталь 15",null,null,null,null,null,null,null,null,null,null,null,null,null,null,null,null,null,null,null,null,".",null,null,null,1]
[500,"Изделие 3",null,null,"Деталь 23",null,null,null,null,null,null,null,null,null,null,null,null,null,null,null,null,null,null,null,null,null,null,".",null,3]
[null,null,null,null,"Деталь 24",null,null,null,null,null,null,null,null,null,null,null,null,null,null,null,null,null,null,null,null,null,".",null,null,2]
[null,"Изделие 6",null,null,"Деталь 43",null,null,null,null,null,null,null,null,null,null,null,null,null,null,null,null,null,null,null,null,null,null,null,".",4]
[null,null,null,null,"Деталь 44",null,null,null,null,null,null,null,null,null,null,null,null,null,null,null,null,null,null,null,null,null,".",null,null,2]
[null,null,null,null,"Деталь 46",null,null,null,null,null,null,null,null,null,null,null,null,null,null,null,null,null,null,null,null,null,null,".",null,3]
[null,null,null,null,"Деталь 47",null,null,null,null,null,null,null,null,null,null,null,null,null,null,null,null,null,null,null,null,null,null,null,".",4]
[null,null,null,null,"Деталь 48",null,null,null,null,null,null,null,null,null,null,null,null,null,null,null,null,null,null,null,null,null,null,null,".",4]
[null,"Изделие 7",null,null,"Деталь 54",null,null,null,null,null,null,null,null,null,null,null,null,null,null,null,null,null,null,null,null,null,null,null,null,0]
[null,null,null,null,"Деталь 55",null,null,null,null,null,null,null,null,null,null,null,null,null,null,null,null,null,null,null,null,null,null,null,null,0]
[null,null,null,null,"Деталь 57",null,null,null,null,null,null,null,null,null,null,null,null,null,null,null,null,null,null,null,null,null,null,null,null,0]
[null,"Изделие 8",null,null,"Деталь 58",null,null,null,null,null,null,null,null,null,null,null,null,null,null,null,null,null,null,null,null,null,null,null,null,0]
[null,null,null,null,"Деталь 60",null,null,null,null,null,null,null,null,null,null,null,null,null,null,null,null,null,null,null,null,null,null,null,null,0]
[null,null,null,null,"Деталь 61",null,null,null,null,null,null,null,null,null,null,null,null,null,null,null,null,null,null,null,null,null,null,null,null,0]
[null,"Изделие 9",null,null,"Деталь 64",null,null,null,null,null,null,null,null,null,null,null,null,null,null,null,null,null,null,null,null,null,null,null,null,0]
[null,null,null,null,"Деталь 65",null,null,null,null,null,null,null,null,null,null,null,null,null,null,null,null,null,null,null,null,null,null,null,null,0]
[101010,"Изделие 10",null,null,"Деталь 70",null,null,null,null,null,null,null,null,null,null,null,null,null,null,null,null,null,null,null,null,".",null,null,null,{"$f":"(Z30=\".\")*1+(AA30=\".\")*2+(AB30=\".\")*3+(AC30=\".\")*4","v":1}]
[null,null,null,null,"Деталь 71",null,null,null,null,null,null,null,null,null,null,null,null,null,null,null,null,null,null,null,null,null,null,".",null,3]
[null,null,null,null,"Деталь 72",null,null,null,null,null,null,null,null,null,null,null,null,null,null,null,null,null,null,null,null,null,".",null,null,2]
[null,null,null,null,"Деталь 73",null,null,null,null,null,null,null,null,null,null,null,null,null,null,null,null,null,null,null,null,".",null,null,null,1]
[null,null,null,null,"Деталь 74",null,null,null,null,null,null,null,null,null,null,null,null,null,null,null,null,null,null,null,null,".",null,null,null,1]